bitfinex/quotes_SOLUSD_20250920
["timestamp","ask_amount","ask_price","bid_price","bid_amount"]
[1758393449643,67.38830624,238.76,238.75,0.2]
[1758393449832,70.90571482,238.76,238.75,0.2]
[1758393450139,70.18571482,238.76,238.75,0.2]
[1758393451825,38.98571482,238.76,238.75,0.2]
[1758393454835,2.79740858,238.76,238.75,0.89]
[1758393455146,32.02,238.8,238.75,2.35782943]
[1758393455328,6.98522851,238.79,238.76,2.15782943]
[1758393455533,6.98522851,238.79,238.77,0.69]
[1758393457644,6.98522851,238.79,238.75,0.2]
[1758393457822,6.98522851,238.79,238.78,0.69]
[1758393459836,6.98522851,238.79,238.76,0.69]
[1758393460036,6.98522851,238.79,238.77,0.69]
[1758393461452,6.98522851,238.79,238.78,0.69]
[1758393463624,6.98522851,238.79,238.75,0.2]
[1758393463927,31.2,238.8,238.76,0.69]
[1758393463928,2.79733399,238.78,238.76,0.69]
[1758393464142,2.79733399,238.79,238.76,0.69]
[1758393465050,2.79733399,238.79,238.75,0.2]
[1758393465254,0.72,238.78,238.75,0.2]
[1758393465560,2.79733399,238.78,238.75,0.89]
[1758393465741,6.98542414,238.78,238.75,0.89]
[1758393466243,2.79733399,238.77,238.75,0.89]
[1758393466444,2.79733399,238.77,238.76,0.69]
[1758393467840,6.98546482,238.77,238.75,0.2]
[1758393468262,6.98546482,238.77,238.75,0.89]
[1758393468566,4.18813083,238.77,238.75,0.89]
[1758393468984,4.18813083,238.77,238.75,0.2]
[1758393469266,6.99028867,238.77,238.75,0.2]
[1758393469464,4.18795544,238.78,238.75,0.2]
[1758393469660,2.80255677,238.77,238.75,0.2]
[1758393470055,2.80255677,238.77,238.75,0.89]
[1758393470251,4.18795544,238.78,238.75,0.89]
[1758393470458,2.8029838,238.77,238.75,0.89]
[1758393470777,4.18795544,238.78,238.75,0.89]
[1758393470960,2.80310747,238.77,238.75,1.66782943]
[1758393471270,2.80356589,238.76,238.75,2.35782943]
[1758393471471,2.80356589,238.78,238.75,0.89]
[1758393471769,2.80356589,238.77,238.75,0.89]
[1758393471947,2.80356589,238.76,238.75,0.89]
[1758393472148,6.99161631,238.78,238.75,0.89]
[1758393472368,2.80356589,238.77,238.75,0.89]
[1758393472564,2.80356589,238.76,238.75,0.89]
[1758393472762,2.80356589,238.77,238.75,0.89]
[1758393472972,2.80356589,238.76,238.75,0.89]
[1758393473580,2.80356589,238.76,238.75,2.35782943]
[1758393473947,2.80356589,238.79,238.75,6.5463111]
[1758393474147,31.2,238.8,238.78,1.46782943]
[1758393474348,2.80589161,238.79,238.75,4.38848167]
[1758393474550,31.2,238.8,238.78,1.46782943]
[1758393474752,2.80569706,238.79,238.78,1.46782943]
[1758393475057,2.80569706,238.79,238.78,2.15782943]
[1758393477172,2.80569706,238.79,238.78,1.46782943]
[1758393479916,2.80569706,238.79,238.78,2.29442104]
[1758393480631,2.80569706,238.79,238.78,3.01442104]
[1758393481328,2.80569706,238.79,238.78,7.20237648]
[1758393483811,3.85400772,238.79,238.78,7.20237648]
[1758393484434,3.85400772,238.79,238.78,3.01442104]
[1758393486037,2.80569706,238.82,238.78,7.20237015]
[1758393486204,3.85389963,238.81,238.78,4.90794911]
[1758393486409,31.2,238.81,238.79,0.7]
[1758393486830,32.02,238.86,238.78,4.18794911]
[1758393487013,3.5047812,238.87,238.79,0.7]
[1758393487014,31.2,238.83,238.79,0.7]
[1758393487210,3.85477143,238.82,238.8,0.7]
[1758393487413,31.2,238.83,238.81,2.29442104]
[1758393487609,31.2,238.83,238.82,2.29442104]
[1758393487815,31.2,238.82,238.8,0.7]
[1758393488022,2.8065148,238.81,238.8,0.7]
[1758393488616,2.8065148,238.81,238.8,4.88760469]
[1758393489016,2.8065148,238.81,238.8,7.18202573]
[1758393489629,31.2,238.83,238.8,7.18202573]
[1758393489820,3.85485211,238.82,238.8,4.18760469]
[1758393490014,31.89,238.83,238.8,4.18760469]
[1758393490212,3.85448395,238.82,238.8,4.18760469]
[1758393490416,31.89,238.83,238.8,4.18760469]
[1758393490630,3.85441143,238.82,238.8,4.18760469]
[1758393490833,31.89,238.83,238.8,4.18760469]
[1758393491031,31.89,238.83,238.82,2.29442104]
[1758393491236,35.74409569,238.83,238.82,2.29442104]
[1758393493044,3.85409569,238.83,238.82,2.29442104]
[1758393493232,3.85409569,238.83,238.82,2.99442104]
[1758393494534,3.85409569,238.83,238.82,2.29442104]
[1758393497838,2.80591658,238.84,238.82,7.18167503]
[1758393498031,31.2,238.86,238.83,2.99442104]
[1758393498221,3.85125323,238.85,238.84,0.7]
[1758393498956,2.80317855,238.85,238.84,0.7]
[1758393499248,2.80317855,238.87,238.84,2.29442104]
[1758393499426,3.851238,238.86,238.83,4.18697564]
[1758393499627,2.80317855,238.85,238.83,4.88697564]
[1758393500551,2.80317855,238.85,238.84,2.29442104]
[1758393501644,2.80317855,238.85,238.84,2.99442104]
[1758393501832,2.80317855,238.87,238.84,2.99442104]
[1758393502027,2.80317855,238.86,238.82,0.7]
[1758393502235,3.49317855,238.86,238.82,0.7]
[1758393502437,0.69,238.86,238.82,0.7]
[1758393502644,3.49317855,238.86,238.82,0.7]
[1758393502844,0.69,238.86,238.82,0.7]
[1758393503038,3.49317855,238.86,238.82,0.7]
[1758393503237,0.69,238.86,238.85,2.29442104]
[1758393503428,3.49317855,238.86,238.85,2.29442104]
[1758393503644,0.69,238.86,238.85,2.29442104]
[1758393503828,3.49317855,238.86,238.85,2.29442104]
[1758393504028,0.69,238.86,238.85,2.29442104]
[1758393504249,3.49317855,238.86,238.85,2.29442104]
[1758393504465,0.69,238.86,238.85,2.29442104]
[1758393504636,3.49317855,238.86,238.85,2.29442104]
[1758393504826,0.69,238.86,238.85,2.29442104]
[1758393505030,3.49317855,238.86,238.85,2.29442104]
[1758393505253,0.69,238.86,238.85,2.29442104]
[1758393505435,2.80317855,238.87,238.85,2.29442104]
[1758393505741,0.69,238.92,238.86,2.29442104]
[1758393505944,3.8490059,238.91,238.87,0.7]
[1758393506144,2.80108136,238.9,238.87,0.7]
[1758393506355,34.00108136,238.93,238.87,0.7]
[1758393506554,3.84898268,238.92,238.87,0.7]
[1758393506753,31.2,238.93,238.87,0.7]
[1758393506754,3.52108136,238.91,238.87,0.7]
[1758393506956,0.72,238.91,238.87,0.7]
[1758393507156,0.72,238.91,238.9,2.29442104]
[1758393507840,2.80108136,238.92,238.9,2.29442104]
[1758393508042,2.80108136,238.92,238.91,2.29442104]
[1758393508043,3.52108136,238.92,238.91,2.29442104]
[1758393508360,2.80108136,238.92,238.91,2.29442104]
[1758393508545,2.80108136,238.93,238.91,2.29442104]
[1758393508748,7.70641444,238.93,238.86,0.66]
[1758393508957,2.80108136,238.92,238.91,2.29442104]
[1758393509163,0.72,238.92,238.91,2.29442104]
[1758393509346,2.80108136,238.93,238.91,2.29442104]
[1758393509663,2.80108136,238.93,238.92,2.29442104]
[1758393509834,2.80108136,238.94,238.92,2.29442104]
[1758393510039,2.80108136,238.94,238.93,2.29442104]
[1758393510368,31.2,238.95,238.93,2.29442104]
[1758393510539,31.92,238.95,238.94,2.29442104]
[1758393510860,35.76520316,238.95,238.94,2.29442104]
[1758393511265,34.71741414,238.95,238.94,2.29442104]
[1758393511571,38.90239007,238.95,238.94,2.29442104]
[1758393511943,39.95019424,238.95,238.85,0.66]
[1758393512258,31.2,238.93,238.89,2.29442104]
[1758393512465,3.84521831,238.92,238.89,2.29442104]
[1758393512669,4.90567661,238.91,238.89,2.29442104]
[1758393512966,0.72,238.9,238.89,2.29442104]
[1758393516645,4.18567661,238.91,238.89,2.29442104]
[1758393516845,4.18567661,238.91,238.9,2.29442104]
[1758393517070,4.90567661,238.91,238.9,2.29442104]
[1758393518868,33.99741414,238.92,238.9,2.29442104]
[1758393519168,31.2,238.92,238.91,2.29442104]
[1758393520971,36.10550142,238.92,238.86,0.66]
[1758393521178,3.84563663,238.91,238.86,0.66]
[1758393521474,2.79766927,238.91,238.9,2.29442104]
[1758393521655,3.84561284,238.91,238.9,2.29442104]
[1758393522166,8.75128945,238.91,238.9,2.29442104]
[1758393522472,39.95128945,238.91,238.9,2.29442104]
[1758393522970,2.79766927,238.91,238.9,2.29442104]
[1758393523157,3.51766927,238.93,238.9,2.29442104]
[1758393523360,4.90534457,238.93,238.92,2.29442104]
[1758393523573,7.70301384,238.93,238.92,2.29442104]
[1758393524075,0.1,238.99,238.93,4.18532624]
[1758393524278,0.1,238.99,238.98,2.29442104]
[1758393526263,4.28432746,238.99,238.95,0.66]
[1758393526459,4.28432746,238.99,238.98,2.29442104]
[1758393526460,5.00432746,238.99,238.98,2.29442104]
[1758393527174,0.82,238.99,238.98,2.29442104]
[1758393527373,7.80322023,238.99,238.98,2.29442104]
[1758393528178,7.08322023,238.99,238.98,2.29442104]
[1758393530375,2.89894474,238.99,238.98,2.29442104]
[1758393530588,0.1,238.99,238.98,2.95442104]
[1758393531080,31.3,238.99,238.98,2.95442104]
[1758393532372,0.1,238.99,238.98,2.29442104]
[1758393532679,31.3,238.99,238.98,2.29442104]
[1758393534686,7.79917836,238.99,238.96,2.29442104]
[1758393534985,3.51484521,238.98,238.96,2.29442104]
[1758393535372,0.72,238.97,238.96,2.29442104]
[1758393535867,4.28433315,238.99,238.96,2.29442104]
[1758393536194,35.48433315,238.99,238.98,2.29442104]
[1758393536367,38.93917836,238.99,238.98,2.29442104]
[1758393540680,38.27917836,238.99,238.98,2.29442104]
[1758393541391,38.93917836,238.99,238.98,2.29442104]
[1758393541680,38.93917836,238.99,238.97,2.29442104]
[1758393541888,6.97929579,238.98,238.97,1.46616134]
[1758393542084,6.97929579,238.98,238.94,0.69]
[1758393542388,6.97929579,238.98,238.97,1.46616134]
[1758393542563,7.63929579,238.98,238.97,1.46616134]
[1758393542889,6.97929579,238.98,238.97,1.46616134]
[1758393546287,8.68695836,238.98,238.97,1.46616134]
[1758393546461,8.02695836,238.98,238.97,1.46616134]
[1758393546666,8.68695836,238.98,238.97,1.46616134]
[1758393547391,8.02695836,238.98,238.97,1.46616134]
[1758393548075,8.68695836,238.98,238.97,1.46616134]
[1758393550871,8.68695836,238.98,238.96,1.46616134]
[1758393551077,4.50250778,238.97,238.93,2.16616134]
[1758393551293,2.79484521,238.96,238.93,2.16616134]
[1758393551592,2.79484521,238.95,238.93,2.16616134]
[1758393551771,2.79484521,238.96,238.93,2.16616134]
[1758393551971,2.79484521,238.95,238.93,2.16616134]
[1758393552171,2.79484521,238.96,238.93,2.16616134]
[1758393552380,6.97992935,238.95,238.93,2.16616134]
[1758393552593,4.18508414,238.95,238.93,2.16616134]
[1758393553198,6.9865143,238.95,238.93,2.16616134]
[1758393553398,4.1848008,238.96,238.93,2.16616134]
[1758393553696,2.80150175,238.95,238.93,2.16616134]
[1758393555096,6.98661217,238.95,238.93,2.16616134]
[1758393555291,4.18511042,238.95,238.93,2.16616134]
[1758393555674,6.98700489,238.95,238.93,2.16616134]
[1758393555997,4.18511042,238.95,238.93,2.16616134]
[1758393556499,6.98700489,238.95,238.93,2.16616134]
[1758393556696,4.18511042,238.95,238.93,2.16616134]
[1758393557086,6.98705201,238.95,238.93,2.16616134]
[1758393557288,4.18511042,238.95,238.93,2.16616134]
[1758393557701,6.9873325,238.95,238.93,2.16616134]
[1758393557883,4.1848008,238.96,238.93,2.16616134]
[1758393558087,2.80222256,238.95,238.94,0.7]
[1758393558684,2.80222256,238.96,238.94,0.7]
[1758393558884,2.80222256,238.95,238.94,0.7]
[1758393559084,2.80222256,238.96,238.94,0.7]
[1758393559374,2.80222256,238.95,238.94,0.7]
[1758393560989,2.80222256,238.95,238.94,2.16616134]
[1758393564513,3.84988568,238.95,238.94,2.16616134]
[1758393564895,2.80222256,238.95,238.94,2.16616134]
[1758393566209,3.84985868,238.95,238.94,0.7]
[1758393566404,3.84985868,238.95,238.94,2.16616134]
[1758393567587,3.84985868,238.95,238.92,4.18549232]
[1758393567588,4.50985868,238.95,238.91,0.72]
[1758393567815,3.84985868,238.94,238.9,36.44583009]
[1758393567993,2.80222256,238.93,238.91,0.72]
[1758393568309,4.18482176,238.96,238.91,0.72]
[1758393568513,3.85684031,238.95,238.91,0.72]
[1758393568705,3.85684031,238.94,238.91,0.72]
[1758393568906,2.80917675,238.93,238.91,4.90565924]
[1758393569108,4.18482176,238.96,238.92,2.18616134]
[1758393569298,3.85688026,238.95,238.94,1.46616134]
[1758393570513,3.85688019,238.95,238.94,1.46616134]
[1758393571817,2.809217,238.95,238.94,1.46616134]
[1758393575316,6.99419293,238.95,238.93,1.46616134]
[1758393575617,3.469217,238.94,238.93,1.46616134]
[1758393575797,3.469217,238.94,238.92,1.46616134]
[1758393575996,3.469217,238.93,238.91,1.46616134]
[1758393576217,3.469217,238.92,238.91,1.46616134]
[1758393578132,2.809217,238.92,238.91,1.46616134]
[1758393578809,7.65475303,238.92,238.9,1.46616134]
[1758393579012,3.469217,238.91,238.9,1.46616134]
[1758393579803,3.469217,238.91,238.89,1.46616134]
[1758393580014,2.809217,238.9,238.89,1.46616134]
[1758393581317,2.809217,238.9,238.89,2.18616134]
[1758393584498,2.809217,238.9,238.87,0.72]
[1758393584696,2.809217,238.9,238.86,13.59559401]
[1758393584697,2.809217,238.89,238.88,32.92]
[1758393585311,2.809217,238.89,238.88,32.2]
[1758393585923,2.809217,238.89,238.88,33.66616134]
[1758393586527,2.809217,238.89,238.88,34.38616134]
[1758393586926,2.809217,238.89,238.88,2.18616134]
[1758393587223,2.809217,238.89,238.88,34.38616134]
[1758393588331,4.18570993,238.91,238.88,34.38616134]
[1758393588531,2.80830155,238.9,238.89,1.46616134]
[1758393594025,2.80830155,238.9,238.89,33.64616134]
[1758393599106,2.80830155,238.9,238.89,34.30616134]
[1758393599336,2.80830155,238.9,238.89,33.64616134]
[1758393600517,2.80830155,238.9,238.89,34.30616134]
[1758393600818,2.80830155,238.9,238.89,33.64616134]
[1758393602135,2.80830155,238.9,238.89,34.30616134]
[1758393602332,2.80830155,238.9,238.89,33.64616134]
[1758393602918,2.80830155,238.9,238.89,34.32616134]
[1758393603126,31.2,238.94,238.89,38.51218838]
[1758393603446,2.80683847,238.93,238.92,1.46616134]
[1758393603736,2.80683847,238.93,238.92,2.97150047]
[1758393604605,2.80683847,238.93,238.92,2.29150047]
[1758393606935,2.80710724,238.93,238.92,2.29150047]
[1758393607536,3.46710724,238.93,238.9,2.29150047]
[1758393607841,3.46710724,238.92,238.9,32.16]
[1758393608030,2.80710724,238.91,238.9,32.16]
[1758393608539,2.80710724,238.91,238.9,32.84]
[1758393609940,2.80710724,238.91,238.9,32.16]
[1758393610237,2.80710724,238.91,238.9,32.84]
[1758393613137,2.80710724,238.91,238.9,32.16]
[1758393613625,2.80710724,238.91,238.89,0.68]
[1758393613828,4.18551645,238.92,238.9,32.14]
[1758393614026,3.4683431,238.91,238.84,0.68]
[1758393614231,2.8083431,238.9,238.85,34.43150047]
[1758393614433,3.4683431,238.89,238.85,32.14]
[1758393614627,3.4683431,238.88,238.85,32.14]
[1758393614846,3.4683431,238.87,238.85,32.14]
[1758393615140,0.66,238.87,238.85,32.14]
[1758393616625,4.84642876,238.87,238.84,2.29150047]
[1758393616821,4.84642876,238.87,238.85,32.14]
[1758393617644,2.80734966,238.86,238.85,32.14]
[1758393617825,2.80734966,238.86,238.85,34.43150047]
[1758393618439,2.80734966,238.86,238.85,32.14]
[1758393618842,7.65399745,238.86,238.79,13.59559401]
[1758393619028,3.46734966,238.85,238.81,2.29150047]
[1758393619345,3.46734966,238.84,238.82,32.14]
[1758393619550,2.80734966,238.83,238.82,32.14]
[1758393621746,2.80734966,238.83,238.81,2.97150047]
[1758393622057,0.66,238.85,238.81,35.11150047]
[1758393622248,2.80290447,238.84,238.81,35.11150047]
[1758393622427,2.80290447,238.83,238.81,34.43150047]
[1758393622628,0.66,238.83,238.81,34.43150047]
[1758393622841,2.80290447,238.85,238.81,34.43150047]
[1758393623140,3.46290447,238.84,238.81,35.11150047]
[1758393623322,0.66,238.84,238.81,2.97150047]
[1758393623932,4.84688162,238.85,238.81,2.97150047]
[1758393624137,3.46227495,238.84,238.81,2.97150047]
[1758393624527,2.80227495,238.84,238.81,2.97150047]
[1758393625347,4.18688162,238.85,238.81,2.97150047]
[1758393625645,4.84688162,238.85,238.82,2.29150047]
[1758393625820,4.84688162,238.85,238.82,2.97150047]
[1758393626550,6.9877925,238.85,238.82,2.97150047]
[1758393626763,23.21831043,239.29,238.89,13.59559401]
[1758393626764,3.50888405,238.96,238.89,13.59559401]
[1758393626944,0.1,238.99,238.95,2.29150047]
[1758393627259,0.1,238.99,238.98,2.29150047]
[1758393629128,0.1,238.99,238.98,5.42057869]
[1758393630058,4.94427549,238.99,238.98,5.42057869]
[1758393630350,4.94427549,238.99,238.98,2.29150047]
[1758393631333,4.94427549,238.99,238.96,2.29150047]
[1758393631533,0.66,238.98,238.96,2.29150047]
[1758393631750,0.66,238.98,238.95,2.29150047]
[1758393631944,4.1848008,238.96,238.92,2.29150047]
[1758393632254,0.66,238.95,238.92,34.51150047]
[1758393632455,4.1848008,238.96,238.92,35.21150047]
[1758393632641,4.8448008,238.96,238.92,35.21150047]
[1758393633242,4.8448008,238.96,238.92,32.92]
[1758393633448,4.8448008,238.96,238.93,2.29150047]
[1758393635451,4.18445058,238.98,238.93,2.29150047]
[1758393635659,0.66,238.95,238.92,34.51150047]
[1758393635847,0.66,238.94,238.92,34.51150047]
[1758393636452,4.18445058,238.98,238.92,34.51150047]
[1758393636757,4.18497593,238.95,238.92,34.51150047]
[1758393636943,4.84497593,238.95,238.92,34.51150047]
[1758393637346,4.84445058,238.98,238.93,0.7]
[1758393637546,0.66,238.97,238.93,0.7]
[1758393638545,4.1848008,238.96,238.93,0.7]
[1758393639352,4.8448008,238.96,238.93,0.7]
[1758393641058,0.66,238.95,238.92,34.51150047]
[1758393641252,0.66,238.95,238.92,32.22]
[1758393641463,0.66,238.95,238.92,34.51150047]
[1758393643350,0.66,238.95,238.92,35.21150047]
[1758393643351,4.1850719,238.95,238.92,35.21150047]
[1758393643563,4.1850719,238.95,238.92,34.51150047]
[1758393643860,4.1850719,238.95,238.93,0.7]
[1758393644163,4.1850719,238.95,238.93,2.99150047]
[1758393645462,4.1848008,238.96,238.93,2.99150047]
[1758393645861,31.2,238.93,238.88,0.7]
[1758393646053,31.86,238.93,238.89,2.99150047]
[1758393646764,35.38544664,238.93,238.9,0.7]
[1758393647149,35.38544664,238.93,238.9,2.99150047]
[1758393649562,35.38544664,238.93,238.9,0.7]
[1758393649766,31.2,238.93,238.89,2.29150047]
[1758393650064,31.2,238.93,238.9,2.99150047]
[1758393650366,31.2,238.93,238.91,0.7]
[1758393652369,31.2,238.93,238.9,2.29150047]
[1758393652671,31.2,238.93,238.9,2.99150047]
[1758393654473,36.04533636,238.93,238.9,2.29150047]
[1758393654966,35.38533636,238.93,238.9,2.29150047]
[1758393655158,0.66,238.92,238.86,48.04709448]
[1758393655358,0.66,238.91,238.86,48.74709448]
[1758393655549,0.66,238.91,238.87,0.7]
[1758393655749,0.66,238.91,238.87,2.99150047]
[1758393656172,35.38533636,238.93,238.87,2.99150047]
[1758393656376,0.66,238.9,238.87,2.99150047]
[1758393657454,4.84588069,238.9,238.87,2.99150047]
[1758393657873,4.18588069,238.9,238.87,2.99150047]
[1758393658578,4.18567661,238.91,238.87,2.99150047]
[1758393658755,0.66,238.91,238.88,2.29150047]
[1758393658960,4.18540132,238.93,238.9,2.29150047]
[1758393659171,4.18540132,238.93,238.91,3.01150047]
[1758393659557,4.18540132,238.93,238.91,2.29150047]
[1758393660077,2.79713352,238.94,238.91,3.01150047]
[1758393660370,31.2,238.94,238.91,3.01150047]
[1758393661268,36.04521474,238.94,238.91,2.29150047]
[1758393662957,35.38521474,238.94,238.92,2.99150047]
[1758393663753,4.18521474,238.94,238.92,2.99150047]
[1758393663978,4.18497593,238.95,238.92,2.99150047]
[1758393664171,4.88497593,238.95,238.92,2.29150047]
[1758393665854,4.88497593,238.95,238.92,1.46660749]
[1758393669262,7.68221937,238.95,238.92,1.46660749]
[1758393669469,2.79724344,238.94,238.92,1.46660749]
[1758393669866,2.79724344,238.96,238.93,2.16660749]
[1758393670071,0.8,238.99,238.95,1.46660749]
[1758393670273,2.80369188,238.98,238.97,1.46660749]
[1758393670478,3.50369188,238.98,238.97,1.46660749]
[1758393671785,2.80369188,238.98,238.97,1.46660749]
[1758393672288,2.80369188,238.98,238.97,2.16660749]
[1758393672584,2.80369188,238.98,238.97,6.35123317]
[1758393674095,0.1,238.99,238.97,6.35123317]
[1758393674381,2.80534545,238.98,238.94,28.24362279]
[1758393674767,2.80534545,238.98,238.95,0.7]
[1758393675092,0.1,238.99,238.95,0.7]
[1758393675268,2.80534545,238.98,238.95,0.7]
[1758393675458,2.80534545,238.98,238.97,1.46660749]
[1758393675662,2.80534545,238.98,238.97,2.16660749]
[1758393676098,0.1,238.99,238.97,2.16660749]
[1758393676400,0.1,238.99,238.98,0.7]
[1758393676893,2.90534545,238.99,238.98,0.7]
[1758393677106,0.1,238.99,238.98,6.35105807]
[1758393678071,0.1,238.99,238.98,52.06665208]
[1758393678271,0.1,238.99,238.98,52.48509713]
[1758393678489,0.1,238.99,238.98,58.35152709]
[1758393678710,0.1,238.99,238.98,26.23152709]
[1758393678918,0.1,238.99,238.98,58.35152709]
[1758393679787,0.2,239.05,238.99,13.59559401]
[1758393679987,0.2,239.05,239.04,15.0622015]
[1758393680200,0.2,239.05,239.04,47.2022015]
[1758393680407,0.2,239.05,239.04,52.08560176]
[1758393680604,0.2,239.05,239.04,52.50394178]
[1758393681308,0.2,239.05,239.04,65.21998595]
[1758393682500,0.2,239.05,239.04,33.07998595]
[1758393682700,0.2,239.05,239.04,65.19998595]
[1758393686891,0.2,239.05,239.04,26.7299782]
[1758393687098,0.2,239.05,239.04,59.89824567]
[1758393687414,0.2,239.05,239.04,63.94824567]
[1758393689814,0.2,239.05,239.04,63.92824567]
[1758393690005,0.2,239.05,239.04,31.82824567]
[1758393690206,0.2,239.05,239.04,63.92824567]
[1758393691708,0.2,239.05,239.04,64.57824567]
[1758393692821,0.2,239.05,239.04,68.76164593]
[1758393695900,0.2,239.05,239.04,68.74164593]
[1758393698726,0.2,239.05,239.04,31.01163818]
[1758393698932,0.2,239.05,239.04,63.88824567]
[1758393699231,0.2,239.05,239.04,64.53824567]
[1758393699517,0.2,239.05,239.04,63.88824567]
[1758393699723,0.2,239.05,239.04,64.53824567]
[1758393700326,0.2,239.05,239.04,63.88824567]
[1758393701819,0.2,239.05,239.04,68.72164593]
[1758393705923,0.2,239.05,239.04,69.13998595]
[1758393706220,0.2,239.05,239.04,70.81688871]
[1758393709318,0.2,239.07,239.05,13.59559401]
[1758393709629,0.2,239.07,239.06,47.54050652]
[1758393709924,0.2,239.07,239.06,52.3735568]
[1758393710104,0.2,239.07,239.06,54.05010814]
[1758393712626,0.1,239.09,239.07,13.59559401]
[1758393712926,0.1,239.09,239.08,47.52047153]
[1758393713116,0.1,239.09,239.08,16.13047153]
[1758393713309,0.1,239.09,239.08,49.8469526]
[1758393714525,0.81,239.09,239.08,49.1969526]
[1758393714727,0.1,239.09,239.08,53.37965295]
[1758393715732,0.1,239.09,239.08,21.33965295]
[1758393715933,0.1,239.09,239.08,53.37965295]
[1758393717709,0.1,239.09,239.08,54.03965295]
[1758393718426,0.2,239.1,239.09,13.59559401]
[1758393718611,0.2,239.1,239.09,14.25559401]
[1758393718812,0.2,239.1,239.09,15.7222015]
[1758393719340,0.2,239.1,239.09,21.58106745]
[1758393720133,0.2,239.1,239.09,53.62106745]
[1758393722840,0.2,239.1,239.09,21.58106745]
[1758393723026,0.2,239.1,239.09,53.62106745]
[1758393724219,0.89,239.1,239.09,52.96106745]
[1758393724539,0.89,239.1,239.09,53.37931999]
[1758393725037,0.2,239.1,239.09,53.37931999]
[1758393725755,0.2,239.1,239.09,54.19995883]
[1758393728650,0.2,239.1,239.09,54.90995883]
[1758393729517,0.2,239.1,239.09,54.19995883]
[1758393729724,0.89,239.1,239.09,54.19995883]
[1758393730940,0.2,239.1,239.09,54.19995883]
[1758393731143,0.2,239.1,239.09,54.90995883]
[1758393732541,0.2,239.1,239.09,22.86995883]
[1758393732744,0.2,239.1,239.09,54.90995883]
[1758393736151,0.2,239.1,239.09,52.6227125]
[1758393736352,0.2,239.1,239.09,54.90995883]
[1758393743352,0.2,239.1,239.09,54.19995883]
[1758393743656,0.89,239.1,239.09,54.19995883]
[1758393744151,0.2,239.1,239.09,54.19995883]
[1758393744740,0.2,239.1,239.09,22.15995883]
[1758393744944,0.89,239.1,239.09,54.19995883]
[1758393747046,0.2,239.1,239.09,54.19995883]
[1758393748639,0.2,239.1,239.09,22.15995883]
[1758393748862,0.91,239.1,239.09,47.31193456]
[1758393749044,0.91,239.1,239.09,49.59918089]
[1758393750447,0.91,239.1,239.09,17.55918089]
[1758393750654,0.91,239.1,239.09,34.32724633]
[1758393751263,5.09235048,239.1,239.09,34.32724633]
[1758393751449,5.09235048,239.1,239.09,32.04]
[1758393753345,5.09235048,239.1,239.09,34.32724633]
[1758393755052,0.91,239.1,239.09,34.32724633]
[1758393758943,0.2,239.1,239.09,34.32724633]
[1758393759143,0.91,239.1,239.09,34.32724633]
[1758393765245,5.09235048,239.1,239.09,32.04]
[1758393765454,5.09235048,239.1,239.06,2.28724633]
[1758393765763,0.71,239.09,239.07,32.04]
[1758393765962,0.71,239.08,239.06,2.28724633]
[1758393766161,0.71,239.08,239.07,32.04]
[1758393767245,0.71,239.08,239.05,15.88284034]
[1758393767446,0.71,239.07,239.06,32.04]
[1758393768448,4.18282362,239.08,239.06,32.04]
[1758393770080,4.1825254,239.09,239.06,32.04]
[1758393770267,0.71,239.08,239.06,32.04]
[1758393771768,0.71,239.08,239.07,32.04]
[1758393772683,0.2,239.1,239.07,35.01724633]
[1758393772978,0.2,239.1,239.08,14.28559401]
[1758393773360,0.2,239.1,239.09,32.04]
[1758393773561,0.2,239.1,239.09,32.73]
[1758393774080,0.2,239.1,239.09,35.01724633]
[1758393774275,0.2,239.1,239.09,32.73]
[1758393774460,0.91,239.1,239.09,32.04]
[1758393774863,0.2,239.1,239.09,32.04]
[1758393777678,0.2,239.1,239.09,34.32724633]
[1758393779858,0.2,239.1,239.05,4.1825254]
[1758393779859,7.33959681,239.1,239.05,4.1825254]
[1758393780067,3.46988351,239.09,239.05,4.1825254]
[1758393780278,0.67,239.08,239.05,4.1825254]
[1758393780476,0.67,239.07,239.06,32.04]
[1758393781783,4.8528753,239.07,239.06,32.04]